bitfinex/quotes_ETHUSD_20240607
["timestamp","ask_amount","ask_price","bid_price","bid_amount"]
[1717798116659,6.89186124,3692.1,3692.0,99.84768085]
[1717798116861,7.47770063,3692.1,3692.0,99.84768085]
[1717798118457,6.02343939,3692.1,3692.0,99.84768085]
[1717798118654,3.2386,3692.1,3692.0,99.84768085]
[1717798119998,0.801,3692.1,3692.0,99.84768085]
[1717798121584,0.58583939,3692.2,3692.0,99.84768085]
[1717798121784,0.801,3692.4,3692.1,2.4588]
[1717798121988,2.4376,3692.8,3692.1,2.4588]
[1717798122187,2.70772,3693.2,3692.1,5.10910545]
[1717798122188,0.801,3692.4,3692.1,5.10910545]
[1717798122373,2.4376,3693.1,3692.2,2.7084]
[1717798122561,0.89907681,3692.6,3692.2,2.7084]
[1717798122766,0.801,3692.6,3692.2,2.7084]
[1717798124402,2.4376,3693.1,3692.2,2.7084]
[1717798124604,0.09797529,3692.6,3692.4,2.70825]
[1717798124770,0.801,3692.8,3692.4,2.70825]
[1717798124969,0.09810256,3692.6,3692.4,2.70825]
[1717798125293,0.801,3692.8,3692.4,2.70825]
[1717798125610,0.09811515,3692.6,3692.4,2.70825]
[1717798125786,0.801,3692.8,3692.4,3.28920921]
[1717798125982,0.09718739,3692.6,3692.4,3.28920921]
[1717798126174,0.801,3693.0,3692.4,3.28920921]
[1717798127911,0.801,3692.8,3692.4,3.28920921]
[1717798135312,12.38,3693.3,3692.4,3.28920921]
[1717798135511,0.801,3692.8,3692.4,3.28920921]
[1717798138093,2.70784,3693.0,3692.1,2.4588]
[1717798138288,8.231,3692.7,3692.1,2.4588]
[1717798138602,0.09393779,3692.6,3692.1,2.4588]
[1717798138789,8.231,3692.7,3692.1,2.4588]
[1717798138993,0.09393779,3692.6,3692.1,2.4588]
[1717798139195,8.231,3692.7,3692.2,2.65030545]
[1717798139403,0.09393779,3692.6,3692.2,2.65030545]
[1717798139603,8.231,3692.7,3692.2,2.65030545]
[1717798139911,0.09393779,3692.6,3692.2,2.65030545]
[1717798140321,0.801,3692.7,3692.2,2.65030545]
[1717798140716,0.09390066,3692.6,3692.2,2.65030545]
[1717798140906,0.09390066,3692.6,3692.3,0.64254207]
[1717798141087,0.801,3692.7,3692.3,0.64254207]
[1717798141286,0.801,3692.5,3692.3,0.64254207]
[1717798144519,2.325,3692.9,3692.3,3.35086207]
[1717798144725,0.801,3692.7,3692.3,3.35086207]
[1717798144901,0.801,3692.7,3692.5,2.70819]
[1717798145100,0.09392386,3692.6,3692.5,2.70819]
[1717798145396,0.801,3692.7,3692.5,2.70819]
[1717798145596,0.09392386,3692.6,3692.5,2.70819]
[1717798145826,0.801,3692.7,3692.5,2.70819]
[1717798146140,0.09394009,3692.6,3692.5,3.10135983]
[1717798146486,0.801,3692.7,3692.5,3.10135983]
[1717798146926,0.09394009,3692.6,3692.5,3.10135983]
[1717798147225,0.801,3692.9,3692.5,3.10135983]
[1717798147424,0.09398732,3692.8,3692.5,3.10135983]
[1717798150429,0.801,3692.7,3692.5,3.10135983]
[1717798150616,0.09079931,3692.6,3692.5,3.10135983]
[1717798150819,0.801,3692.7,3692.5,3.10135983]
[1717798151017,0.09079931,3692.6,3692.5,3.10135983]
[1717798151216,0.801,3692.7,3692.5,3.10135983]
[1717798151409,0.09079931,3692.6,3692.5,3.10135983]
[1717798151729,0.801,3692.7,3692.5,3.10135983]
[1717798151930,0.801,3692.7,3692.6,0.43248681]
[1717798153434,0.801,3692.9,3692.6,0.43248681]
[1717798155338,0.58561109,3693.0,3692.7,2.70803]
[1717798157634,0.801,3693.2,3692.7,2.70803]
[1717798157816,0.801,3693.2,3692.9,2.70789]
[1717798158015,0.09112508,3693.1,3692.9,2.70789]
[1717798162939,0.89212508,3693.1,3692.9,2.70789]
[1717798172454,0.09112508,3693.1,3692.9,2.70789]
[1717798172671,0.801,3693.1,3692.9,2.70789]
[1717798172813,0.08498344,3693.0,3692.9,2.70789]
[1717798179067,0.801,3693.1,3692.9,2.70789]
[1717798179395,0.08503911,3693.0,3692.9,2.70789]
[1717798179663,0.801,3693.3,3692.9,2.978679]
[1717798179846,0.08508633,3693.2,3692.9,2.978679]
[1717798180060,0.801,3693.3,3692.9,2.70789]
[1717798180371,0.08508633,3693.2,3692.9,2.70789]
[1717798180720,0.801,3693.3,3692.9,2.70789]
[1717798180925,0.08506272,3693.1,3692.9,2.70789]
[1717798181265,0.08503911,3693.0,3692.9,2.70789]
[1717798181463,0.801,3693.3,3692.9,2.70789]
[1717798181665,0.08506888,3693.2,3692.9,2.70789]
[1717798181824,0.801,3693.3,3692.9,2.70789]
[1717798182025,0.08506888,3693.2,3692.9,2.70789]
[1717798182225,0.801,3693.3,3692.9,2.70789]
[1717798182567,0.08506888,3693.2,3692.9,2.70789]
[1717798182941,0.801,3693.3,3692.9,2.70789]
[1717798183128,0.08504527,3693.1,3692.9,2.70789]
[1717798183334,0.801,3693.3,3692.9,2.70789]
[1717798183537,0.08502166,3693.0,3692.9,2.70789]
[1717798184040,0.801,3693.3,3692.9,2.70789]
[1717798184371,0.08506888,3693.2,3692.9,2.70789]
[1717798184754,0.801,3693.3,3692.9,2.70789]
[1717798184955,0.08504527,3693.1,3692.9,2.70789]
[1717798185157,0.801,3693.3,3692.9,2.70789]
[1717798185681,0.0817777,3693.2,3693.1,2.70768]
[1717798185900,7.43,3693.5,3693.1,2.70768]
[1717798186057,0.08058688,3693.4,3693.1,2.70768]
[1717798191270,0.801,3693.5,3693.1,2.70768]
[1717798191471,0.07791184,3693.4,3693.1,2.70768]
[1717798192086,0.07791184,3693.4,3693.1,3.2521769]
[1717798193694,0.801,3693.6,3693.1,3.2521769]
[1717798194001,0.07793544,3693.5,3693.1,3.2521769]
[1717798198311,0.07793544,3693.5,3693.4,2.70753]
[1717798201438,0.801,3693.7,3693.4,2.70753]
[1717798201921,0.0778766,3693.6,3693.4,2.70753]
[1717798203531,0.801,3693.5,3693.4,2.70753]
[1717798203736,0.801,3693.5,3691.3,1.41999985]
[1717798203737,3.4435,3693.3,3691.2,2.70911]
[1717798203924,3.4435,3693.3,3691.1,0.42425367]
[1717798203925,0.801,3692.1,3691.1,0.42425367]
[1717798204137,0.801,3692.1,3692.0,88.49920227]
[1717798204138,7.90233466,3692.1,3692.0,88.49920227]
[1717798204415,0.58546028,3692.1,3692.0,88.49920227]
[1717798204615,0.801,3692.1,3692.0,88.49920227]
[1717798204820,1.38646028,3692.1,3692.0,88.49920227]
[1717798205710,0.58546028,3692.1,3692.0,88.49920227]
[1717798206028,1.38646028,3692.1,3692.0,88.49920227]
[1717798207235,1.82510631,3692.1,3692.0,88.49920227]
[1717798207996,1.02410631,3692.1,3692.0,88.49920227]
[1717798208196,0.43864603,3692.1,3692.0,88.49920227]
[1717798210101,1.02410631,3692.1,3692.0,88.49920227]
[1717798210302,0.43864603,3692.1,3692.0,88.49920227]
[1717798210922,1.02410631,3692.1,3692.0,88.49920227]
[1717798211257,0.43864603,3692.1,3692.0,88.49920227]
[1717798213759,0.5158894,3692.1,3692.0,88.49920227]
[1717798227968,1.3178894,3692.1,3692.0,88.49920227]
[1717798228271,8.90456463,3692.1,3692.0,88.49920227]
[1717798228440,9.14480457,3692.1,3692.0,88.49920227]
[1717798228769,12.14480457,3692.1,3692.0,88.49920227]
[1717798229770,11.49128931,3692.1,3692.0,88.49920227]
[1717798231036,11.4912892,3692.1,3692.0,88.49920227]
[1717798231469,11.54300134,3692.1,3692.0,88.49920227]
[1717798236683,8.62775934,3692.1,3692.0,88.49920227]
[1717798236998,6.34835934,3692.1,3692.0,88.49920227]
[1717798238042,15.86224534,3692.1,3692.0,88.49920227]
[1717798238239,14.83347834,3692.1,3692.0,88.49920227]
[1717798238972,14.31186734,3692.1,3692.0,88.49920227]
[1717798239356,14.31182564,3692.1,3692.0,88.49920227]
[1717798239947,12.76259664,3692.1,3692.0,88.49920227]
[1717798240372,12.36192564,3692.1,3692.0,88.49920227]
[1717798240780,8.79031764,3692.1,3692.0,88.49920227]
[1717798241187,12.36192564,3692.1,3692.0,88.49920227]
[1717798241485,11.81992564,3692.1,3692.0,88.49920227]
[1717798243381,11.01792564,3692.1,3692.0,88.49920227]
[1717798243555,3.71481695,3692.1,3692.0,88.49920227]
[1717798243751,4.38786144,3692.1,3692.0,88.49920227]
[1717798244152,0.58586144,3692.1,3692.0,88.49920227]
[1717798244452,1.38786144,3692.1,3692.0,88.49920227]
[1717798246074,1.38777015,3692.1,3692.0,88.49920227]
[1717798251796,3.19024783,3692.1,3692.0,88.49920227]
[1717798252200,3.30779206,3692.1,3692.0,88.49920227]
[1717798252500,3.30783127,3692.1,3692.0,88.49920227]
[1717798257508,2.72202191,3692.1,3692.0,88.49920227]
[1717798257714,3.30785203,3692.1,3692.0,88.49920227]
[1717798260376,6.30785203,3692.1,3692.0,88.49920227]
[1717798261490,3.70337435,3692.1,3692.0,88.49920227]
[1717798261694,3.58583012,3692.1,3692.0,88.49920227]
[1717798261920,4.38783012,3692.1,3692.0,88.49920227]
[1717798263024,4.38777715,3692.1,3692.0,88.49920227]
[1717798264420,4.38779259,3692.1,3692.0,88.49920227]
[1717798265112,3.58579259,3692.1,3692.0,88.49920227]
[1717798265420,4.38779259,3692.1,3692.0,88.49920227]
[1717798267064,0.58579259,3692.1,3692.0,88.49920227]
[1717798267321,1.38779259,3692.1,3692.0,88.49920227]
[1717798267694,0.58579259,3692.1,3692.0,91.14950772]
[1717798267894,1.38779259,3692.1,3692.0,91.14950772]
[1717798268208,1.3877515,3692.1,3692.0,91.14950772]
[1717798270131,0.5857515,3692.1,3692.0,91.14950772]
[1717798270427,1.3877515,3692.1,3692.0,91.14950772]
[1717798272621,1.38774961,3692.1,3692.0,91.14950772]
[1717798272825,1.38774961,3692.1,3692.0,88.49920227]
[1717798276612,0.58574961,3692.1,3692.0,88.49920227]
[1717798276808,1.38774961,3692.1,3692.0,88.49920227]
[1717798277532,3.99611461,3692.1,3692.0,88.49920227]
[1717798277937,3.45279961,3692.1,3692.0,88.49920227]
[1717798278120,7.31440957,3692.1,3692.0,88.49920227]
[1717798278313,7.42727457,3692.1,3692.0,88.49920227]
[1717798278515,8.82012923,3692.1,3692.0,88.49920227]
[1717798279454,8.82026841,3692.1,3692.0,88.49920227]
[1717798280254,6.75521841,3692.1,3692.0,88.49920227]
[1717798280557,6.75517902,3692.1,3692.0,88.49920227]
[1717798286179,6.75518789,3692.1,3692.0,88.49920227]
[1717798289785,6.75516789,3692.1,3692.0,88.49920227]
[1717798291045,6.16932962,3692.1,3692.0,88.49920227]
[1717798291246,6.7551747,3692.1,3692.0,88.49920227]
[1717798298892,6.75518761,3692.1,3692.0,88.49920227]
[1717798304372,5.89357765,3692.1,3692.0,88.49920227]
[1717798306467,5.8935516,3692.1,3692.0,88.49920227]
[1717798310999,5.30771966,3692.1,3692.0,88.49920227]
[1717798311195,2.89357653,3692.1,3692.0,88.49920227]
[1717798311397,5.89357653,3692.1,3692.0,88.49920227]
[1717798311907,4.50072187,3692.1,3692.0,88.49920227]
[1717798312068,3.69872187,3692.1,3692.0,88.49920227]
[1717798312269,4.38785687,3692.1,3692.0,88.49920227]
[1717798312470,1.4939856,3692.1,3692.0,88.49920227]
[1717798312678,0.802,3692.1,3692.0,88.49920227]
[1717798312883,1.38784237,3692.1,3692.0,88.49920227]
[1717798314508,1.38784192,3692.1,3692.0,88.49920227]
[1717798314917,0.58584192,3692.1,3692.0,88.49920227]
[1717798315205,1.38784192,3692.1,3692.0,88.49920227]
[1717798316387,2.78069658,3692.1,3692.0,88.49920227]
[1717798316585,5.88681825,3692.1,3692.0,88.49920227]
[1717798319701,5.88684091,3692.1,3692.0,88.49920227]
[1717798320415,5.08484091,3692.1,3692.0,88.49920227]
[1717798320596,5.88684091,3692.1,3692.0,88.49920227]
[1717798321115,5.08484091,3692.1,3692.0,88.49920227]
[1717798321419,2.88684091,3692.1,3692.0,88.49920227]
[1717798321616,5.88684091,3692.1,3692.0,88.49920227]
[1717798325333,3.69198625,3692.1,3692.0,88.49920227]
[1717798325636,4.38786458,3692.1,3692.0,91.14950772]
[1717798326004,1.38786458,3692.1,3692.0,91.14950772]
[1717798327337,1.38786458,3692.1,3692.0,88.49920227]
[1717798330337,1.38784295,3692.1,3692.0,88.49920227]
[1717798333038,1.38784268,3692.1,3692.0,88.49920227]
[1717798339852,2.78069734,3692.1,3692.0,88.49920227]
[1717798340050,8.12669734,3692.1,3692.0,88.49920227]
[1717798340344,4.49282427,3692.1,3692.0,88.49920227]
[1717798340550,1.49282427,3692.1,3692.0,88.49920227]
[1717798340725,4.38784268,3692.1,3692.0,88.49920227]
[1717798340923,1.38784268,3692.1,3692.0,88.49920227]
[1717798342845,1.38785001,3692.1,3692.0,88.49920227]
[1717798354858,0.802,3692.1,3692.0,88.49920227]
[1717798355066,1.38785639,3692.1,3692.0,88.49920227]
[1717798356555,1.3878536,3692.1,3692.0,88.49920227]
[1717798364272,0.5858536,3692.1,3692.0,88.49920227]
[1717798364477,1.3878536,3692.1,3692.0,88.49920227]
[1717798365040,1.38785912,3692.1,3692.0,88.49920227]
[1717798372210,1.38784915,3692.1,3692.0,88.49920227]
[1717798373615,0.802,3692.1,3692.0,88.49920227]
[1717798373783,1.38784921,3692.1,3692.0,88.49920227]
[1717798374523,0.58584921,3692.1,3692.0,91.14950772]
[1717798374799,1.38784921,3692.1,3692.0,91.14950772]
[1717798375490,0.58584921,3692.1,3692.0,91.14950772]
[1717798375796,1.38784921,3692.1,3692.0,91.14950772]
[1717798377267,0.58584921,3692.1,3692.0,91.14950772]
[1717798377679,1.38784921,3692.1,3692.0,91.14950772]
[1717798377874,0.58584921,3692.1,3692.0,91.14950772]
[1717798378081,1.38784921,3692.1,3692.0,91.14950772]
[1717798380763,0.802,3692.1,3692.0,91.14950772]
[1717798381099,1.38776513,3692.1,3692.0,91.14950772]
[1717798384974,5.12171979,3692.1,3692.0,88.49920227]
[1717798385180,8.22618372,3692.1,3692.0,88.49920227]
[1717798385374,8.12171979,3692.1,3692.0,88.49920227]
[1717798386581,8.22634985,3692.1,3692.0,88.49920227]
[1717798386882,19.10445985,3692.1,3692.0,88.49920227]
[1717798387070,21.28574584,3692.1,3692.0,88.49920227]
[1717798387499,21.28574584,3692.1,3692.0,88.40134516]
[1717798390107,21.28588722,3692.1,3692.0,88.40134516]
[1717798391491,20.38580722,3692.1,3692.0,88.40134516]
[1717798391697,17.19322222,3692.1,3692.0,88.40134516]
[1717798392008,10.40777722,3692.1,3692.0,88.40134516]
[1717798393976,8.22649123,3692.1,3692.0,88.40134516]
[1717798394177,5.78076117,3692.1,3692.0,88.40134516]
[1717798394510,5.88526157,3692.1,3692.0,88.40134516]
[1717798394877,5.88519577,3692.1,3692.0,88.40134516]
[1717798395901,5.29935506,3692.1,3692.0,88.40134516]
[1717798396104,5.88520045,3692.1,3692.0,88.40134516]
[1717798396408,5.88503564,3692.1,3692.0,88.40134516]
[1717798398610,5.29919025,3692.1,3692.0,88.40134516]
[1717798398813,2.88504195,3692.1,3692.0,88.40134516]
[1717798398978,5.88504195,3692.1,3692.0,88.40134516]
[1717798400878,5.88506551,3692.1,3692.0,88.40134516]
[1717798401717,5.88506347,3692.1,3692.0,88.40134516]
[1717798405417,5.88505776,3692.1,3692.0,88.40134516]
[1717798408483,6.97165354,3692.1,3692.0,88.40134516]
[1717798408991,9.43565354,3692.1,3692.0,88.40134516]
[1717798411125,9.43571919,3692.1,3692.0,88.40134516]
[1717798413718,8.84978603,3692.1,3692.0,88.40134516]
[1717798413904,9.43571324,3692.1,3692.0,88.40134516]
[1717798423907,8.34911746,3692.1,3692.0,88.40134516]
[1717798429024,5.88511746,3692.1,3692.0,88.40134516]
[1717798433743,5.29919025,3692.1,3692.0,88.40134516]
[1717798433913,5.88505757,3692.1,3692.0,88.40134516]
[1717798443430,4.92471821,3692.1,3692.0,88.40134516]
[1717798446582,4.92471821,3692.1,3692.0,91.05165061]
[1717798446759,4.82991223,3692.1,3692.0,91.05165061]
[1717798449275,4.82991223,3692.1,3692.0,88.28174517]
[1717798449482,7.14641223,3692.1,3692.0,82.39924517]
[1717798449665,7.23799179,3692.1,3692.0,82.39924517]
[1717798451745,7.23807203,3692.1,3692.0,82.39924517]
[1717798453688,20.88042803,3692.1,3692.0,81.73114517]
[1717798453854,23.53073348,3692.1,3692.0,81.73114517]
[1717798454246,21.83115348,3692.1,3692.0,81.73114517]
[1717798454647,19.57257848,3692.1,3692.0,81.73114517]
[1717798455277,18.98663092,3692.1,3692.0,81.73114517]
[1717798455457,19.57257949,3692.1,3692.0,81.73114517]
[1717798457482,19.57257949,3692.1,3692.0,81.64444517]
[1717798457663,19.57257949,3692.1,3692.0,81.34444517]
[1717798457844,19.57257949,3692.1,3692.0,81.14444517]
[1717798458184,19.57257949,3692.1,3692.0,80.78174517]
[1717798459661,19.57257949,3692.1,3692.0,80.57064517]
[1717798459859,19.57257427,3692.1,3692.0,80.27064517]
[1717798460051,19.57257427,3692.1,3692.0,79.97064517]
[1717798460252,19.57257427,3692.1,3692.0,79.87064517]
[1717798460670,19.57257427,3692.1,3692.0,73.35383222]
[1717798461385,19.57257427,3692.1,3692.0,73.09383222]
[1717798461591,19.57257427,3692.1,3692.0,70.77934222]
[1717798461761,19.57257427,3692.1,3692.0,70.62234222]
[1717798462379,20.89931359,3692.1,3692.0,68.89137195]
[1717798462581,20.31337024,3692.1,3692.0,68.89137195]
[1717798462760,20.89939124,3692.1,3692.0,68.89137195]
[1717798463556,20.89939124,3692.1,3692.0,63.20937195]
[1717798463759,20.57265192,3692.1,3692.0,63.20937195]
[1717798463959,20.57265192,3692.1,3692.0,63.15937195]
[1717798464799,20.57261738,3692.1,3692.0,63.15937195]
[1717798464969,20.57261738,3692.1,3692.0,63.11937195]
[1717798465570,20.57261738,3692.1,3692.0,62.42137195]
[1717798468161,20.57258898,3692.1,3692.0,62.42137195]
[1717798468864,18.13615598,3692.1,3692.0,62.42137195]
[1717798469867,17.33415598,3692.1,3692.0,62.42137195]
[1717798470095,17.55019792,3692.1,3692.0,62.42137195]
[1717798470296,18.1361668,3692.1,3692.0,62.42137195]
[1717798471198,18.13619342,3692.1,3692.0,62.09137195]
[1717798473296,17.55019792,3692.1,3692.0,62.09137195]
[1717798473616,18.136186,3692.1,3692.0,62.09137195]
[1717798477425,18.13620716,3692.1,3692.0,62.09137195]
[1717798478424,18.13620716,3692.1,3692.0,61.83137195]
[1717798478792,5.47163371,3692.1,3692.0,61.83137195]
[1717798479298,4.92163371,3692.1,3692.0,61.83137195]
[1717798482732,4.33562447,3692.1,3692.0,61.83137195]
[1717798482937,4.92156406,3692.1,3692.0,61.83137195]
[1717798488346,10.83102906,3692.1,3692.0,61.83137195]
[1717798489747,10.02902906,3692.1,3692.0,61.83137195]
[1717798489892,10.83102906,3692.1,3692.0,61.83137195]
[1717798495746,9.41610306,3692.1,3692.0,61.83137195]
[1717798497139,9.41610832,3692.1,3692.0,61.83137195]
[1717798502454,7.89352632,3692.1,3692.0,61.83137195]
[1717798503450,6.28460988,3692.1,3692.0,61.83137195]
[1717798503662,6.8346018,3692.1,3692.0,61.48537196]
[1717798503969,32.0880958,3692.1,3692.0,61.48537196]
[1717798504168,32.0880958,3692.1,3692.0,61.15377196]
[1717798504521,31.3801118,3692.1,3692.0,58.81617196]
[1717798504720,32.45685112,3692.1,3692.0,49.29138047]
[1717798505976,32.45685112,3692.1,3692.0,48.66938047]
[1717798506656,32.45685112,3692.1,3692.0,48.08838047]
[1717798507634,32.45685112,3692.1,3692.0,47.71238048]
[1717798507836,32.45685112,3692.1,3692.0,47.26138048]
[1717798508440,32.45685112,3692.1,3692.0,45.56348048]
[1717798508922,32.45685112,3692.1,3692.0,4.88e-06]
[1717798509234,32.45685112,3692.1,3690.8,2.3222]
[1717798509235,2.70936,3690.9,3690.8,2.3222]
[1717798509450,7.98980792,3690.9,3690.8,2.3222]
[1717798509961,8.57574469,3690.9,3690.8,2.3222]
[1717798510662,7.77374469,3690.9,3690.8,2.3222]
[1717798510866,8.57587468,3690.9,3690.8,2.3222]
[1717798512073,8.57587468,3690.9,3689.6,2.3303]
[1717798512268,0.802,3690.5,3689.6,2.681532]
[1717798512581,0.08537855,3690.4,3689.6,2.681532]
[1717798513241,0.802,3689.7,3688.8,2.3303]
[1717798513479,0.802,3688.9,3688.8,2.3303]
[1717798513806,0.88698024,3688.9,3688.8,2.3303]
[1717798515242,0.08498024,3688.9,3688.8,2.3303]
[1717798515551,0.802,3688.9,3688.8,2.3303]
[1717798515882,0.88667264,3688.9,3688.8,2.3303]
[1717798516949,0.08467264,3688.9,3688.8,2.3303]
[1717798517281,0.802,3688.9,3688.8,2.3303]
[1717798517480,0.88666081,3688.9,3688.8,2.3303]
[1717798520876,0.08466081,3688.9,3688.8,2.56333]
[1717798521085,0.802,3689.4,3688.8,2.56333]
[1717798521254,0.08474229,3689.3,3688.8,2.56333]
[1717798521456,0.802,3689.2,3688.8,2.56333]
[1717798521655,0.084698,3689.1,3688.8,2.56333]
[1717798522001,0.084698,3689.1,3688.9,0.256333]
[1717798522292,3.58626482,3689.9,3688.9,0.256333]
[1717798522458,0.802,3689.3,3688.9,0.256333]
[1717798522658,0.08472015,3689.2,3688.9,0.256333]
[1717798522858,0.802,3689.3,3689.0,0.2586633]
[1717798523099,0.08472015,3689.2,3689.0,0.2586633]
[1717798523261,0.802,3689.3,3689.0,0.2586633]
[1717798523455,0.08472015,3689.2,3689.0,0.2586633]
[1717798523656,0.802,3689.3,3689.0,0.2586633]
[1717798523891,0.08472832,3689.2,3689.0,0.2586633]
[1717798524071,0.802,3689.3,3689.0,0.2586633]
[1717798524279,0.08472832,3689.2,3689.0,0.2586633]
[1717798524463,0.802,3689.3,3689.0,0.2586633]
[1717798524674,0.08472015,3689.2,3689.0,0.2586633]
[1717798524873,0.802,3689.3,3689.0,0.2586633]
[1717798525200,0.08472015,3689.2,3689.0,0.2586633]
[1717798525576,0.802,3689.3,3689.0,0.2586633]
[1717798525779,0.08470617,3689.1,3689.0,0.2586633]
[1717798525979,0.802,3689.3,3689.0,0.2586633]
[1717798526364,0.08473649,3689.2,3689.0,0.2586633]
[1717798526713,0.802,3689.4,3688.8,2.3303]
[1717798527004,0.08475864,3689.3,3688.8,2.3303]
[1717798530881,0.08475864,3689.3,3688.9,2.4485]
[1717798531078,3.58621563,3689.9,3689.1,2.4485]
[1717798531289,0.88666586,3689.8,3689.1,2.4485]
[1717798531491,0.12436772,3689.8,3689.1,2.4485]
[1717798531682,0.12436772,3689.8,3689.2,0.543033]
[1717798533174,0.12436772,3689.8,3689.3,2.3655]
[1717798533507,0.12448603,3689.7,3689.3,2.3655]
[1717798533713,5.78107029,3690.0,3689.3,2.3655]
[1717798533882,0.12452815,3689.9,3689.3,2.3655]
[1717798534087,0.92652815,3689.9,3689.3,3.0076273]
[1717798534570,1.51269562,3689.9,3689.3,3.0076273]
[1717798534770,0.92652815,3689.9,3689.3,3.0076273]
[1717798535468,0.92652815,3689.9,3689.3,5.7181473]
[1717798535681,0.12452815,3689.9,3689.3,5.7181473]
[1717798535982,0.12452815,3689.9,3689.7,2.71024]
[1717798536186,0.12452815,3689.9,3689.8,2.3655]
[1717798536610,0.802,3690.8,3690.0,2.3655]
[1717798536812,0.802,3690.6,3690.0,2.3655]
[1717798537025,1.38803912,3690.6,3690.0,2.3655]
[1717798537396,0.58603912,3690.6,3690.1,2.70993]
[1717798538092,3.58603912,3690.6,3690.1,2.70993]
[1717798538824,3.58603912,3690.6,3690.1,2.38018671]
[1717798540921,0.58603912,3690.6,3690.4,2.7097]
[1717798541696,0.12100945,3690.5,3690.4,2.7097]
[1717798541895,0.58600119,3690.6,3690.4,2.7097]
[1717798542127,0.12100945,3690.5,3690.4,2.7097]
[1717798542630,0.12100945,3690.5,3690.2,2.3655]
[1717798542837,7.43,3690.7,3690.2,2.3655]
[1717798543010,0.12095476,3690.4,3690.2,2.3655]
[1717798543326,0.1209337,3690.3,3690.2,2.3655]
[1717798543528,0.5859986,3690.6,3690.2,2.3655]
[1717798543828,0.12098359,3690.5,3690.2,2.3655]
[1717798544695,0.12098359,3690.5,3690.3,2.7098]
[1717798545331,7.43,3690.7,3690.3,2.7098]
[1717798545534,0.12099687,3690.6,3690.3,2.7098]
[1717798549924,0.70700994,3690.6,3690.3,2.7098]
[1717798551350,0.12099687,3690.6,3690.3,2.7098]
[1717798551825,0.70701505,3690.6,3690.3,2.7098]
[1717798556415,0.70700283,3690.6,3690.3,2.7098]
[1717798559250,0.12099687,3690.6,3690.3,2.7098]
[1717798559562,0.802,3690.9,3690.3,2.7098]
[1717798559859,0.802,3690.7,3690.3,2.7098]
[1717798560237,0.1206726,3690.6,3690.3,2.7098]
[1717798562143,2.2249506,3690.9,3690.3,2.7098]
[1717798562343,0.12072137,3690.8,3690.3,2.7098]
[1717798563335,0.802,3690.7,3690.0,2.4817]
[1717798563649,0.802,3690.5,3690.0,2.4817]
[1717798564157,0.12074305,3690.4,3690.0,2.4817]
[1717798565564,0.58603729,3690.3,3690.0,2.4817]
[1717798565863,0.12031425,3690.2,3690.0,2.4817]
[1717798566067,0.58603729,3690.4,3690.0,2.4817]
[1717798566244,0.12025453,3690.1,3690.0,2.4817]
[1717798566447,0.802,3690.5,3690.0,2.4817]
[1717798566448,0.58603729,3690.3,3690.0,2.4817]
[1717798566646,0.12024331,3690.1,3690.0,2.4817]
[1717798566868,0.58603729,3690.3,3690.0,2.4817]
[1717798567046,0.12062663,3690.1,3690.0,2.4817]
[1717798567246,0.58603729,3690.3,3690.0,2.4817]
[1717798567459,0.12062663,3690.1,3690.0,2.4817]
[1717798567634,0.58603729,3690.4,3690.0,2.4817]
[1717798567979,0.58603729,3690.3,3690.0,2.4817]
[1717798568147,0.70631289,3690.2,3690.0,2.4817]
[1717798568336,0.1202756,3690.2,3690.0,2.4817]
[1717798568664,0.58603729,3690.3,3690.0,2.4817]
[1717798568866,0.11891685,3690.1,3690.0,2.4817]
[1717798569072,0.58603729,3690.2,3690.0,2.4817]
[1717798569277,0.11891685,3690.1,3690.0,2.4817]
[1717798569452,0.58603729,3690.3,3690.0,2.4817]
[1717798569650,0.11854476,3690.1,3690.0,2.4817]
[1717798569876,0.802,3690.5,3690.0,2.4817]
[1717798570076,0.11856031,3690.1,3690.0,2.4817]
[1717798570238,0.802,3690.5,3690.0,2.4817]
[1717798570440,0.11894017,3690.1,3690.0,2.4817]
[1717798570667,0.802,3690.5,3689.9,2.71005]
[1717798570882,0.11894017,3690.1,3689.9,2.71005]
[1717798571181,0.11892999,3690.0,3689.9,2.71005]
[1717798571373,3.0684,3690.7,3689.9,2.71005]
[1717798571550,0.11905633,3690.6,3689.9,2.71005]
[1717798574863,0.11905633,3690.6,3690.2,2.4263]
[1717798575277,0.802,3690.9,3690.2,2.4263]
[1717798575454,0.11901435,3690.5,3690.2,2.4263]
[1717798575646,0.802,3690.9,3690.2,2.4263]
[1717798575876,0.1189933,3690.4,3690.2,2.4263]
[1717798576059,0.802,3690.9,3690.3,2.70978]
[1717798576259,3.0,3691.0,3690.3,2.70978]
[1717798576483,0.802,3690.9,3690.3,2.70978]
[1717798577076,0.802,3690.7,3690.2,2.4263]
[1717798577282,0.802,3690.7,3690.0,2.71]
[1717798577283,0.802,3690.5,3690.0,2.71]
[1717798577655,1.39285466,3690.7,3690.0,2.71]
[1717798577958,2.19485466,3690.7,3690.0,2.71]
[1717798578166,1.39285466,3690.7,3690.0,2.71]
[1717798578372,2.19485466,3690.7,3690.0,2.71]
[1717798578591,1.39285466,3690.7,3690.0,2.71]
[1717798579698,2.19485466,3690.7,3690.0,2.71]
[1717798580022,0.58604613,3690.6,3690.0,2.71]
[1717798580295,0.58604613,3690.5,3690.0,2.71]
[1717798580461,0.58604613,3690.4,3690.0,2.71]
[1717798580862,0.58604613,3690.6,3690.0,2.71]
[1717798581087,0.58604613,3690.5,3690.0,2.71]
[1717798581284,0.58604613,3690.4,3690.0,2.71]
[1717798581499,0.58604613,3690.6,3690.0,2.71]
[1717798581674,0.58604613,3690.5,3690.0,2.71]
[1717798581873,0.58604613,3690.4,3690.0,2.71]
[1717798582199,0.58604613,3690.6,3690.0,2.71]
[1717798582525,0.58604613,3690.5,3690.0,2.71]
[1717798582673,0.58604613,3690.4,3690.0,2.71]
[1717798582865,0.58604613,3690.6,3690.0,2.71]
[1717798583064,0.58604613,3690.5,3690.0,2.71]
[1717798583590,0.58603317,3690.4,3690.0,2.71]
[1717798583785,0.58603317,3690.6,3690.0,2.71]
[1717798583991,0.58603317,3690.5,3690.0,2.71]
[1717798584196,0.58603317,3690.4,3690.0,2.71]
[1717798584571,0.58603317,3690.6,3690.0,2.71]
[1717798584787,0.58603317,3690.5,3690.0,2.71]
[1717798584986,0.58603317,3690.4,3690.0,2.71]
[1717798585183,0.58603317,3690.6,3690.0,2.71]
[1717798585478,0.58603317,3690.5,3690.0,2.71]